[Event "12th National Amateur Chess-ch 2025"]
[Site "Bihar"]
[Date "2025.03.26"]
[Round "3.10"]
[White "Tejas Shandilya"]
[Black "Mishra Jayesh"]
[Result "1-0"]
[Annotator "NA RC"]
[ECO "D78"]
[WhiteElo "1675"]
[BlackElo "1586"]
[PlyCount "111"]
[EventDate "2025.03.25"]
[EventCountry "IND"]
[SourceTitle "playchess.com"]
[Source "ChessBase"]
[SourceQuality "1"]
[TimeControl "5400+30"]

1. d4 {[%emt 0:01:10]} Nf6 {[%emt 0:00:14]} 2. Nf3 {[%emt 0:01:23]} g6 {[%emt 0:00:17]} 3. g3 {[%emt 0:01:06]} Bg7 {[%emt 0:00:14]} 4. Bg2 {[%emt 0:00:30]} c6 {[%emt 0:00:36]} 5. O-O {[%emt 0:00:51]} O-O {[%emt 0:00:07]} 6. b3 {[%emt 0:01:22]} d5 {[%emt 0:01:35]} 7. Bb2 {[%emt 0:01:02]} Bf5 {[%emt 0:06:50]} 8. Nbd2 {[%emt 0:01:41]} Qc8 {[%emt 0:01:52]} 9. c4 {[%emt 0:01:30]} Bh3 {[%emt 0:03:40]} 10. Rc1 {[%emt 0:00:49]} Bxg2 {[%emt 0:01:45]} 11. Kxg2 {[%emt 0:00:07]} Nbd7 {[%emt 0:03:26]} 12. cxd5 {[%emt 0:02:24]} Nxd5 {[%emt 0:02:23]} 13. Ba3 {[%emt 0:00:32]} a5 {[%emt 0:02:18]} 14. Nb1 {[%emt 0:05:37]} N7f6 {[%emt 0:05:31]} 15. Re1 {[%emt 0:02:26]} Qg4 {[%emt 0:00:58]} 16. e3 {[%emt 0:04:04]} Ne4 {[%emt 0:06:15]} 17. Nfd2 {[%emt 0:02:21]} Qxd1 {[%emt 0:07:21]} 18. Rexd1 {[%emt 0:00:14]} Nxd2 {[%emt 0:00:30]} 19. Rxd2 {[%emt 0:00:14]} Rfe8 {[%emt 0:07:22]} 20. e4 {[%emt 0:02:58]} Nb6 {[%emt 0:01:59]} 21. Nc3 {[%emt 0:03:59]} a4 {[%emt 0:01:54]} 22. Bc5 {[%emt 0:01:37]} Nd7 {[%emt 0:03:53]} 23. Nxa4 {[%emt 0:01:19]} e5 {[%emt 0:01:14]} 24. dxe5 {[%emt 0:03:11]} Nxe5 {[%emt 0:07:28]} 25. f4 {[%emt 0:01:18]} Ng4 {[%emt 0:01:52]} 26. Kf3 {[%emt 0:00:24]} Nf6 {[%emt 0:02:17]} 27. e5 {[%emt 0:02:31]} Nd5 {[%emt 0:01:37]} 28. Nb6 {[%emt 0:00:47]} Nxb6 {[%emt 0:01:13]} 29. Bxb6 {[%emt 0:00:06]} Ra6 {[%emt 0:00:50]} 30. Bc7 {[%emt 0:01:18]} Bf8 {[%emt 0:00:54]} 31. a4 {[%emt 0:00:25]} Bb4 {[%emt 0:03:06]} 32. Rd7 {[%emt 0:00:15]} b5 {[%emt 0:01:19]} 33. a5 {[%emt 0:00:29]} Kf8 {[%emt 0:06:12]} 34. Bd6+ {[%emt 0:02:02]} Bxd6 {[%emt 0:00:11]} 35. Rxd6 {[%emt 0:00:02]} Rxa5 {[%emt 0:00:22]} 36. Rcxc6 {[%emt 0:00:18]} Ra2 {[%emt 0:02:50]} 37. Rc7 {[%emt 0:02:15]} Rb2 {[%emt 0:01:41]} 38. Rdd7 {[%emt 0:00:55]} Rxb3+ {[%emt 0:00:15]} 39. Kg4 {[%emt 0:00:02]} b4 {[%emt 0:08:06]} 40. Rxf7+ {[%emt 0:00:17]} Kg8 {[%emt 0:00:06]} 41. Rg7+ {[%emt 0:00:07]} Kh8 {[%emt 0:00:03]} 42. Rxh7+ {[%emt 0:00:11]} Kg8 {[%emt 0:00:07]} 43. Rcg7+ {[%emt 0:00:27]} Kf8 {[%emt 0:00:35]} 44. Kg5 {[%emt 0:00:02]} Re6 {[%emt 0:05:10]} 45. Rb7 {[%emt 0:01:24]} Kg8 {[%emt 0:00:49]} 46. Rhd7 {[%emt 0:00:07]} Kf8 {[%emt 0:01:01]} 47. Rf7+ {[%emt 0:00:33]} Kg8 {[%emt 0:00:14]} 48. Rg7+ {[%emt 0:00:29]} Kf8 {[%emt 0:01:00]} 49. Rgc7 {[%emt 0:00:08]} Rb2 {[%emt 0:00:45]} 50. Rc8+ {[%emt 0:01:34]} Re8 {[%emt 0:00:04]} 51. Rxe8+ {[%emt 0:00:01]} Kxe8 {[%emt 0:00:03]} 52. e6 {[%emt 0:00:37]} Rxh2 {[%emt 0:03:11]} 53. Kf6 {[%emt 0:00:14]} Rd2 {[%emt 0:00:09]} 54. Rb8+ {[%emt 0:00:30]} Rd8 {[%emt 0:00:22]} 55. Rxd8+ {[%emt 0:00:06]} Kxd8 {[%emt 0:00:02]} 56. Kf7 {[%emt 0:00:06]} 1-0

[Event "12th National Amateur Chess-ch 2025"]
[Site "Bihar"]
[Date "2025.03.26"]
[Round "3.11"]
[White "Aatman Raval"]
[Black "Shreyansh Das"]
[Result "1/2-1/2"]
[Annotator "NA RC"]
[ECO "D87"]
[WhiteElo "1667"]
[BlackElo "1583"]
[PlyCount "76"]
[EventDate "2025.03.25"]
[EventCountry "IND"]
[SourceTitle "playchess.com"]
[Source "ChessBase"]
[SourceQuality "1"]
[TimeControl "5400+30"]

1. d4 {[%emt 0:00:22]} Nf6 {[%emt 0:00:10]} 2. c4 {[%emt 0:00:10]} g6 {[%emt 0:00:10]} 3. Nc3 {[%emt 0:00:09]} d5 {[%emt 0:00:07]} 4. cxd5 {[%emt 0:00:31]} Nxd5 {[%emt 0:00:49]} 5. e4 {[%emt 0:00:14]} Nxc3 {[%emt 0:00:13]} 6. bxc3 {[%emt 0:00:31]} Bg7 {[%emt 0:00:09]} 7. Bc4 {[%emt 0:01:01]} O-O {[%emt 0:01:23]} 8. Ne2 {[%emt 0:01:12]} c5 {[%emt 0:00:18]} 9. O-O {[%emt 0:01:45]} Qc7 {[%emt 0:01:46]} 10. Bd3 {[%emt 0:01:17]} Nc6 {[%emt 0:00:33]} 11. Be3 {[%emt 0:03:13]} Rd8 12. Rc1 {[%emt 0:15:02]} Qa5 {[%emt 0:07:02]} 13. Bc4 {[%emt 0:07:23]} cxd4 {[%emt 0:01:59]} 14. Nxd4 {[%emt 0:04:09]} Ne5 {[%emt 0:03:03]} 15. Qb3 {[%emt 0:03:15]} Nxc4 {[%emt 0:00:58]} 16. Qxc4 {[%emt 0:00:03]} e5 {[%emt 0:00:56]} 17. Nb5 {[%emt 0:10:59]} Be6 {[%emt 0:00:21]} 18. Qb4 {[%emt 0:01:00]} Qxa2 {[%emt 0:03:25]} 19. Nc7 {[%emt 0:01:29]} Rac8 {[%emt 0:01:15]} 20. Ra1 {[%emt 0:06:19]} Qc4 {[%emt 0:01:19]} 21. Nxe6 {[%emt 0:01:25]} Qxe6 {[%emt 0:00:48]} 22. Rxa7 {[%emt 0:00:14]} b5 {[%emt 0:01:10]} 23. Rb7 {[%emt 0:05:15]} Rc4 {[%emt 0:01:41]} 24. Qxb5 {[%emt 0:00:28]} Rxc3 {[%emt 0:00:39]} 25. Rb8 {[%emt 0:02:00]} Rxb8 {[%emt 0:00:48]} 26. Qxb8+ {[%emt 0:00:05]} Rc8 {[%emt 0:00:09]} 27. Qb5 {[%emt 0:00:46]} h5 {[%emt 0:00:37]} 28. h3 {[%emt 0:00:37]} Rd8 {[%emt 0:02:54]} 29. Rc1 {[%emt 0:00:35]} Rc8 {[%emt 0:00:50]} 30. Rxc8+ {[%emt 0:01:43]} Qxc8 {[%emt 0:00:11]} 31. Qd5 {[%emt 0:00:15]} Qc7 {[%emt 0:00:31]} 32. Qc5 {[%emt 0:02:01]} Qb7 {[%emt 0:00:44]} 33. Qc2 {[%emt 0:00:10]} Qd7 {[%emt 0:00:32]} 34. Qd2 {[%emt 0:00:29]} Qc6 {[%emt 0:00:41]} 35. Qd3 {[%emt 0:01:06]} Qb7 {[%emt 0:01:00]} 36. Qc2 {[%emt 0:00:14]} Qd7 {[%emt 0:00:09]} 37. Qd2 {[%emt 0:00:19]} Qc6 {[%emt 0:00:13]} 38. Qd3 {[%emt 0:00:03]} Qb7 {[%emt 0:00:08]} 1/2-1/2

[Event "12th National Amateur Chess-ch 2025"]
[Site "Bihar"]
[Date "2025.03.26"]
[Round "3.12"]
[White "Nevin Jose"]
[Black "Adithya Vishveshwaran M"]
[Result "0-1"]
[Annotator "NA"]
[ECO "A46"]
[WhiteElo "1581"]
[BlackElo "1667"]
[PlyCount "40"]
[EventDate "2025.03.25"]
[EventCountry "IND"]
[SourceTitle "playchess.com"]
[Source "ChessBase"]
[SourceQuality "1"]
[TimeControl "5400+30"]

1. d4 {[%emt 0:04:19]} c5 {[%emt 0:01:10]} 2. c3 {[%emt 0:03:37]} Nf6 {[%emt 0:00:23]} 3. Nf3 {[%emt 0:00:09]} Nc6 {[%emt 0:00:42]} 4. Bf4 {[%emt 0:06:51]} cxd4 {[%emt 0:01:31]} 5. cxd4 {[%emt 0:00:24]} Qb6 6. b3 {[%emt 0:11:54]} Ne4 {[%emt 0:01:37]} 7. Nbd2 {[%emt 0:04:43]} d5 {[%emt 0:00:52]} 8. e3 {[%emt 0:01:04]} Bf5 {[%emt 0:00:56]} 9. Nxe4 {[%emt 0:21:55]} Bxe4 {[%emt 0:00:18]} 10. Nd2 {[%emt 0:04:18]} e6 {[%emt 0:12:45]} 11. f3 {[%emt 0:03:46]} Bg6 {[%emt 0:00:44]} 12. a3 {[%emt 0:00:55]} f6 {[%emt 0:04:09]} 13. Kf2 {[%emt 0:11:51]} e5 {[%emt 0:00:15]} 14. dxe5 {[%emt 0:00:37]} fxe5 {[%emt 0:00:26]} 15. Bg5 {[%emt 0:01:36]} h6 {[%emt 0:00:11]} 16. Bh4 {[%emt 0:00:07]} Bc5 {[%emt 0:01:38]} 17. b4 {[%emt 0:15:12]} Bxe3+ {[%emt 0:00:08]} 18. Ke1 {[%emt 0:00:04]} Qd4 {[%emt 0:01:37]} 19. Bg3 {[%emt 0:05:29]} Bxd2+ {[%emt 0:00:04]} 20. Qxd2 {[%emt 0:00:23]} Qxa1+ {[%emt 0:00:06]} 0-1

[Event "12th National Amateur Chess-ch 2025"]
[Site "Bihar"]
[Date "2025.03.26"]
[Round "3.13"]
[White "Bristy Mukherjee"]
[Black "Arpita Patankar"]
[Result "1-0"]
[Annotator "NA RC"]
[ECO "B07"]
[WhiteElo "1985"]
[BlackElo "1750"]
[PlyCount "95"]
[EventDate "2025.03.25"]
[EventCountry "IND"]
[SourceTitle "playchess.com"]
[Source "ChessBase"]
[SourceQuality "1"]
[TimeControl "5400+30"]

1. d4 {[%emt 0:03:15]} g6 {[%emt 0:00:12]} 2. e4 {[%emt 0:03:15]} d6 {[%emt 0:00:12]} 3. Bc4 {[%emt 0:02:12]} Nf6 {[%emt 0:05:33]} 4. Nc3 {[%emt 0:00:42]} Bg7 {[%emt 0:01:13]} 5. f3 {[%emt 0:01:55]} O-O {[%emt 0:01:28]} 6. Be3 {[%emt 0:01:53]} Nbd7 {[%emt 0:02:51]} 7. Qd2 {[%emt 0:00:53]} c5 {[%emt 0:01:08]} 8. Rd1 {[%emt 0:15:25]} Nb6 {[%emt 0:04:01]} 9. Be2 {[%emt 0:01:02]} cxd4 {[%emt 0:01:36]} 10. Bxd4 {[%emt 0:00:10]} Be6 {[%emt 0:00:39]} 11. b3 {[%emt 0:00:55]} Rc8 {[%emt 0:03:26]} 12. h4 {[%emt 0:02:43]} Qc7 {[%emt 0:06:53]} 13. Nb5 {[%emt 0:01:57]} Qb8 {[%emt 0:09:04]} 14. c4 {[%emt 0:04:46]} a6 {[%emt 0:08:45]} 15. Nc3 {[%emt 0:04:52]} Nbd7 {[%emt 0:01:55]} 16. g4 {[%emt 0:02:01]} h5 {[%emt 0:05:36]} 17. gxh5 {[%emt 0:18:37]} Nxh5 {[%emt 0:01:30]} 18. Bxg7 {[%emt 0:00:57]} Kxg7 {[%emt 0:01:08]} 19. f4 {[%emt 0:00:29]} f5 {[%emt 0:14:42]} 20. Bxh5 {[%emt 0:05:56]} gxh5 {[%emt 0:00:10]} 21. Nf3 {[%emt 0:01:14]} fxe4 {[%emt 0:04:38]} 22. Qd4+ {[%emt 0:05:37]} Kh6 {[%emt 0:03:45]} 23. Rg1 {[%emt 0:01:47]} Bg4 {[%emt 0:06:03]} 24. Nxe4 {[%emt 0:09:57]} Qc7 {[%emt 0:03:00]} 25. Nh2 {[%emt 0:01:40]} Qa5+ {[%emt 0:01:16]} 26. Rd2 {[%emt 0:00:50]} Qf5 {[%emt 0:03:52]} 27. Rdg2 {[%emt 0:03:00]} Rg8 {[%emt 0:02:21]} 28. Ng5 {[%emt 0:02:52]} Qb1+ {[%emt 0:00:46]} 29. Kd2 {[%emt 0:00:08]} Qxa2+ {[%emt 0:01:02]} 30. Kc3 {[%emt 0:00:29]} Qa5+ {[%emt 0:00:13]} 31. Kb2 {[%emt 0:00:06]} Nf6 {[%emt 0:01:41]} 32. Nxg4+ {[%emt 0:02:01]} hxg4 {[%emt 0:01:34]} 33. Re2 {[%emt 0:00:24]} Qc7 {[%emt 0:03:06]} 34. Rge1 {[%emt 0:00:28]} Rce8 {[%emt 0:00:50]} 35. Rxe7 {[%emt 0:00:52]} Rxe7 {[%emt 0:00:46]} 36. Qxf6+ {[%emt 0:00:08]} Rg6 {[%emt 0:00:35]} 37. Qxe7 {[%emt 0:00:15]} Qxe7 {[%emt 0:00:09]} 38. Rxe7 {[%emt 0:00:05]} Rf6 {[%emt 0:00:15]} 39. Re6 {[%emt 0:02:47]} Rxe6 {[%emt 0:00:12]} 40. Nxe6 {[%emt 0:00:04]} g3 {[%emt 0:00:39]} 41. Nd4 {[%emt 0:00:09]} Kh5 {[%emt 0:00:31]} 42. f5 {[%emt 0:00:22]} g2 {[%emt 0:00:33]} 43. Ne2 {[%emt 0:00:04]} Kg4 {[%emt 0:00:32]} 44. f6 {[%emt 0:00:11]} Kf3 {[%emt 0:00:18]} 45. Ng1+ {[%emt 0:00:04]} Kf2 {[%emt 0:00:04]} 46. f7 {[%emt 0:00:14]} Kxg1 {[%emt 0:00:08]} 47. f8=Q {[%emt 0:00:05]} Kh1 {[%emt 0:00:26]} 48. Qf3 {[%emt 0:00:07]} 1-0

[Event "12th National Amateur Chess-ch 2025"]
[Site "Bihar"]
[Date "2025.03.26"]
[Round "3.14"]
[White "Marium Fatima"]
[Black "Nivedita V C"]
[Result "1-0"]
[Annotator "NA RC"]
[ECO "D79"]
[WhiteElo "1881"]
[BlackElo "1950"]
[PlyCount "125"]
[EventDate "2025.03.25"]
[EventCountry "IND"]
[SourceTitle "playchess.com"]
[Source "ChessBase"]
[SourceQuality "1"]
[TimeControl "5400+30"]

1. d4 {[%emt 0:00:02]} Nf6 {[%emt 0:01:03]} 2. c4 {[%emt 0:00:06]} g6 {[%emt 0:00:03]} 3. g3 {[%emt 0:00:05]} Bg7 {[%emt 0:00:03]} 4. Bg2 {[%emt 0:00:05]} O-O {[%emt 0:00:10]} 5. Nc3 {[%emt 0:00:03]} c6 {[%emt 0:00:05]} 6. Nf3 {[%emt 0:00:11]} d5 {[%emt 0:00:07]} 7. cxd5 {[%emt 0:00:55]} cxd5 {[%emt 0:00:05]} 8. Ne5 {[%emt 0:00:08]} b6 {[%emt 0:17:29]} 9. O-O {[%emt 0:00:32]} Bb7 {[%emt 0:00:11]} 10. Bf4 Nc6 {[%emt 0:03:53]} 11. Rc1 {[%emt 0:05:08]} Rc8 {[%emt 0:01:22]} 12. Qa4 {[%emt 0:03:41]} a6 {[%emt 0:05:28]} 13. Rfd1 {[%emt 0:12:23]} b5 {[%emt 0:08:45]} 14. Nxc6 {[%emt 0:00:52]} Rxc6 {[%emt 0:03:37]} 15. Qa3 {[%emt 0:02:24]} Rc4 {[%emt 0:03:11]} 16. Nb1 {[%emt 0:00:39]} Ne4 {[%emt 0:07:31]} 17. Be3 {[%emt 0:06:21]} Qd7 {[%emt 0:03:53]} 18. b3 {[%emt 0:01:04]} Rxc1 {[%emt 0:00:17]} 19. Rxc1 {[%emt 0:00:22]} Rc8 {[%emt 0:00:24]} 20. Rxc8+ {[%emt 0:07:05]} Qxc8 {[%emt 0:06:41]} 21. Bxe4 {[%emt 0:06:33]} dxe4 {[%emt 0:00:06]} 22. Qxe7 {[%emt 0:00:14]} Bf8 {[%emt 0:02:27]} 23. Qe5 {[%emt 0:00:24]} Qc2 {[%emt 0:03:46]} 24. Nd2 {[%emt 0:02:58]} Qd1+ {[%emt 0:00:43]} 25. Kg2 {[%emt 0:02:52]} Qxe2 {[%emt 0:01:11]} 26. d5 {[%emt 0:00:57]} Qh5 {[%emt 0:01:20]} 27. Bg5 {[%emt 0:12:09]} Bd6 {[%emt 0:08:04]} 28. Qe8+ {[%emt 0:04:48]} Bf8 {[%emt 0:03:30]} 29. Be7 {[%emt 0:06:27]} Qh6 {[%emt 0:00:06]} 30. Qd8 {[%emt 0:05:42]} e3 {[%emt 0:07:14]} 31. Bxf8 {[%emt 0:01:09]} Qxf8 {[%emt 0:00:08]} 32. Qxf8+ {[%emt 0:00:03]} Kxf8 {[%emt 0:00:06]} 33. fxe3 {[%emt 0:00:02]} Bxd5+ {[%emt 0:00:05]} 34. e4 {[%emt 0:00:15]} Be6 {[%emt 0:00:19]} 35. Kf3 {[%emt 0:00:36]} f6 {[%emt 0:00:58]} 36. Ke3 {[%emt 0:02:16]} Ke7 {[%emt 0:00:05]} 37. Kd4 {[%emt 0:00:04]} Kd6 {[%emt 0:00:07]} 38. Nf3 {[%emt 0:04:37]} Bg4 {[%emt 0:02:01]} 39. Ne1 {[%emt 0:00:22]} Be6 {[%emt 0:01:01]} 40. Nd3 {[%emt 0:00:10]} Bc8 {[%emt 0:01:54]} 41. b4 {[%emt 0:00:52]} Be6 {[%emt 0:00:50]} 42. a3 {[%emt 0:00:07]} g5 {[%emt 0:02:25]} 43. Nc5 {[%emt 0:02:52]} Bc8 {[%emt 0:00:07]} 44. h4 {[%emt 0:00:55]} h6 {[%emt 0:02:40]} 45. hxg5 {[%emt 0:05:15]} hxg5 {[%emt 0:00:07]} 46. Nd3 {[%emt 0:00:12]} Be6 {[%emt 0:00:59]} 47. e5+ {[%emt 0:00:36]} fxe5+ {[%emt 0:00:09]} 48. Nxe5 {[%emt 0:00:02]} Bf5 {[%emt 0:04:31]} 49. Nf7+ {[%emt 0:00:28]} Kc6 {[%emt 0:02:02]} 50. Nxg5 {[%emt 0:00:06]} Kb6 {[%emt 0:00:28]} 51. Ke5 {[%emt 0:00:41]} Bg6 {[%emt 0:00:28]} 52. Ne6 {[%emt 0:00:25]} a5 {[%emt 0:00:23]} 53. Nf4 {[%emt 0:00:14]} axb4 {[%emt 0:01:13]} 54. axb4 {[%emt 0:00:02]} Bf7 {[%emt 0:00:13]} 55. Kd6 {[%emt 0:00:10]} Kb7 {[%emt 0:00:44]} 56. g4 {[%emt 0:00:05]} Kc8 {[%emt 0:00:09]} 57. Ke7 {[%emt 0:00:23]} Bc4 {[%emt 0:00:57]} 58. g5 {[%emt 0:00:43]} Kc7 {[%emt 0:00:34]} 59. g6 {[%emt 0:00:48]} Bg8 {[%emt 0:00:13]} 60. Kf8 {[%emt 0:01:48]} Bc4 {[%emt 0:00:12]} 61. g7 {[%emt 0:00:25]} Kc6 {[%emt 0:00:03]} 62. Ng6 {[%emt 0:00:37]} Kd6 {[%emt 0:00:11]} 63. Nh8 {[%emt 0:00:17]} 1-0

[Event "12th National Amateur Chess-ch 2025"]
[Site "Bihar"]
[Date "2025.03.26"]
[Round "3.15"]
[White "Arushi Severin Helen D Silva"]
[Black "Aamuktha Guntaka"]
[Result "1-0"]
[Annotator "NA RC"]
[ECO "A46"]
[WhiteElo "1746"]
[BlackElo "1910"]
[PlyCount "165"]
[EventDate "2025.03.25"]
[EventCountry "IND"]
[SourceTitle "playchess.com"]
[Source "ChessBase"]
[SourceQuality "1"]
[TimeControl "5400+30"]

1. d4 {[%emt 0:00:04]} Nf6 {[%emt 0:00:51]} 2. Bf4 {[%emt 0:00:13]} e6 {[%emt 0:01:11]} 3. Nf3 {[%emt 0:00:35]} c5 {[%emt 0:00:37]} 4. c3 {[%emt 0:01:00]} Be7 {[%emt 0:02:51]} 5. e3 {[%emt 0:01:08]} cxd4 {[%emt 0:03:01]} 6. exd4 {[%emt 0:00:22]} b6 {[%emt 0:00:33]} 7. Bd3 {[%emt 0:01:33]} Ba6 {[%emt 0:04:42]} 8. Bxa6 {[%emt 0:02:36]} Nxa6 {[%emt 0:00:09]} 9. Qe2 {[%emt 0:00:18]} Nc7 {[%emt 0:00:24]} 10. Nbd2 {[%emt 0:00:55]} O-O {[%emt 0:01:42]} 11. h3 d6 {[%emt 0:01:12]} 12. O-O {[%emt 0:03:45]} b5 {[%emt 0:00:44]} 13. Rac1 {[%emt 0:02:39]} Qd7 {[%emt 0:01:59]} 14. Rfd1 {[%emt 0:03:42]} Ncd5 {[%emt 0:00:49]} 15. Bh2 {[%emt 0:03:01]} Rfc8 {[%emt 0:01:52]} 16. Ne4 {[%emt 0:04:29]} Nb6 {[%emt 0:06:46]} 17. Nfd2 {[%emt 0:02:14]} Nxe4 {[%emt 0:03:25]} 18. Nxe4 {[%emt 0:01:37]} d5 {[%emt 0:00:40]} 19. Nd2 {[%emt 0:01:16]} a5 {[%emt 0:07:40]} 20. Nf3 {[%emt 0:11:44]} b4 {[%emt 0:11:23]} 21. Rd3 {[%emt 0:01:54]} bxc3 {[%emt 0:10:16]} 22. Rdxc3 {[%emt 0:00:21]} Bb4 {[%emt 0:00:54]} 23. Rc7 {[%emt 0:01:45]} Qd8 {[%emt 0:13:39]} 24. b3 {[%emt 0:02:22]} Bd6 {[%emt 0:08:59]} 25. Bxd6 {[%emt 0:01:26]} Qxd6 {[%emt 0:00:07]} 26. Qe5 {[%emt 0:03:10]} Qxe5 {[%emt 0:02:54]} 27. Nxe5 {[%emt 0:00:06]} f6 {[%emt 0:03:11]} 28. Nd3 {[%emt 0:00:15]} Rxc7 {[%emt 0:05:45]} 29. Rxc7 {[%emt 0:00:09]} a4 {[%emt 0:00:59]} 30. Nc5 {[%emt 0:01:27]} axb3 {[%emt 0:00:12]} 31. axb3 {[%emt 0:00:05]} e5 {[%emt 0:02:07]} 32. Rb7 {[%emt 0:03:20]} Nc8 {[%emt 0:00:55]} 33. Ne6 {[%emt 0:01:23]} g6 {[%emt 0:02:17]} 34. Rg7+ {[%emt 0:03:14]} Kh8 {[%emt 0:00:06]} 35. Rf7 {[%emt 0:00:03]} Nd6 {[%emt 0:01:42]} 36. Rxf6 {[%emt 0:00:33]} Ne4 {[%emt 0:00:45]} 37. Rf7 {[%emt 0:00:26]} exd4 {[%emt 0:00:57]} 38. Nxd4 {[%emt 0:00:16]} Kg8 {[%emt 0:00:41]} 39. Rd7 {[%emt 0:00:50]} Ra1+ {[%emt 0:00:22]} 40. Kh2 {[%emt 0:00:12]} Nxf2 {[%emt 0:00:37]} 41. Rxd5 {[%emt 0:00:55]} Rd1 {[%emt 0:00:28]} 42. Kg3 {[%emt 0:02:03]} Ne4+ {[%emt 0:00:12]} 43. Kf4 {[%emt 0:01:32]} Nc5 {[%emt 0:00:50]} 44. Rxc5 {[%emt 0:02:56]} Rxd4+ {[%emt 0:00:05]} 45. Ke3 {[%emt 0:00:03]} Rb4 {[%emt 0:00:37]} 46. Rc3 {[%emt 0:00:04]} Kf7 {[%emt 0:00:16]} 47. Kd3 {[%emt 0:00:07]} Ke6 {[%emt 0:01:00]} 48. Kc2 {[%emt 0:00:09]} Kd5 {[%emt 0:00:28]} 49. Rg3 {[%emt 0:01:15]} Re4 {[%emt 0:00:34]} 50. Rg5+ {[%emt 0:01:17]} Kc6 {[%emt 0:00:16]} 51. Kd3 {[%emt 0:00:21]} Re1 {[%emt 0:00:32]} 52. Kd4 {[%emt 0:00:44]} Kd6 {[%emt 0:00:42]} 53. Rg4 {[%emt 0:00:45]} Rc1 {[%emt 0:00:26]} 54. Rf4 {[%emt 0:00:27]} Rc2 {[%emt 0:00:25]} 55. g3 {[%emt 0:00:35]} Rd2+ {[%emt 0:00:28]} 56. Kc4 {[%emt 0:00:23]} Rc2+ {[%emt 0:00:16]} 57. Kb4 {[%emt 0:00:24]} Rh2 {[%emt 0:00:50]} 58. h4 {[%emt 0:00:53]} Rg2 {[%emt 0:00:24]} 59. Rf7 {[%emt 0:00:48]} Rxg3 {[%emt 0:00:21]} 60. Rxh7 {[%emt 0:00:07]} Kc6 {[%emt 0:00:22]} 61. Rh6 {[%emt 0:00:37]} Kb7 {[%emt 0:00:40]} 62. Kc4 {[%emt 0:01:00]} Kc7 {[%emt 0:00:35]} 63. b4 {[%emt 0:00:20]} Rg1 {[%emt 0:00:42]} 64. Kb5 {[%emt 0:01:43]} Rg3 {[%emt 0:00:32]} 65. Rh7+ {[%emt 0:00:11]} Kc8 {[%emt 0:00:20]} 66. Kb6 {[%emt 0:00:27]} Rf3 {[%emt 0:00:27]} 67. b5 {[%emt 0:00:41]} Rf4 {[%emt 0:00:40]} 68. Rc7+ {[%emt 0:02:58]} Kb8 {[%emt 0:00:30]} 69. Rg7 {[%emt 0:01:24]} Rf6+ {[%emt 0:00:10]} 70. Ka5 {[%emt 0:00:18]} Rf4 {[%emt 0:00:39]} 71. Ka6 {[%emt 0:01:49]} Ra4+ {[%emt 0:00:39]} 72. Kb6 {[%emt 0:00:12]} Kc8 {[%emt 0:00:08]} 73. Rg8+ {[%emt 0:01:26]} Kd7 {[%emt 0:00:05]} 74. Rxg6 {[%emt 0:00:06]} Rxh4 {[%emt 0:00:09]} 75. Kb7 {[%emt 0:00:07]} Rb4 {[%emt 0:01:04]} 76. b6 {[%emt 0:00:07]} Rb1 {[%emt 0:00:15]} 77. Rg7+ {[%emt 0:00:32]} Kd8 {[%emt 0:00:26]} 78. Rg2 {[%emt 0:00:05]} Rd1 {[%emt 0:00:06]} 79. Ra2 {[%emt 0:00:35]} Kd7 {[%emt 0:00:22]} 80. Ka7 {[%emt 0:00:07]} Kc6 {[%emt 0:01:10]} 81. b7 {[%emt 0:00:38]} Rd7 {[%emt 0:00:13]} 82. Rc2+ {[%emt 0:00:07]} Kb5 {[%emt 0:00:02]} 83. Ka8 {[%emt 0:00:13]} 1-0

[Event "12th National Amateur Chess-ch 2025"]
[Site "Bihar"]
[Date "2025.03.26"]
[Round "3.16"]
[White "Prakash Vaishnavi"]
[Black "Lakshanaa R"]
[Result "1-0"]
[Annotator "NA RC"]
[ECO "E61"]
[WhiteElo "1749"]
[BlackElo "1748"]
[PlyCount "93"]
[EventDate "2025.03.25"]
[EventCountry "IND"]
[SourceTitle "playchess.com"]
[Source "ChessBase"]
[SourceQuality "1"]
[TimeControl "5400+30"]

1. e4 {[%emt 0:00:24]} c6 {[%emt 0:00:09]} 2. d4 {[%emt 0:00:03]} d5 {[%emt 0:00:09]} 3. exd5 {[%emt 0:00:06]} cxd5 {[%emt 0:00:05]} 4. c4 {[%emt 0:00:31]} Nf6 {[%emt 0:00:21]} 5. Nc3 {[%emt 0:00:06]} g6 {[%emt 0:00:10]} 6. Bg5 {[%emt 0:02:56]} Bg7 {[%emt 0:01:04]} 7. Nf3 {[%emt 0:03:46]} O-O {[%emt 0:02:38]} 8. Bxf6 {[%emt 0:05:20]} exf6 {[%emt 0:01:07]} 9. cxd5 {[%emt 0:05:16]} b6 {[%emt 0:00:02]} 10. Be2 {[%emt 0:01:23]} Na6 {[%emt 0:05:33]} 11. O-O {[%emt 0:01:14]} Nc7 {[%emt 0:00:15]} 12. Qb3 {[%emt 0:02:23]} Bb7 {[%emt 0:00:31]} 13. Bc4 {[%emt 0:01:57]} Qd7 {[%emt 0:02:13]} 14. Rfe1 {[%emt 0:02:15]} Rad8 {[%emt 0:03:36]} 15. Rac1 {[%emt 0:03:50]} Ne8 {[%emt 0:17:11]} 16. Bb5 {[%emt 0:05:34]} Qd6 {[%emt 0:02:16]} 17. Qa4 {[%emt 0:00:34]} Nc7 {[%emt 0:06:07]} 18. Bc6 {[%emt 0:09:01]} Ba6 {[%emt 0:07:12]} 19. Ne4 {[%emt 0:01:27]} Qf4 {[%emt 0:00:15]} 20. d6 {[%emt 0:01:27]} Rxd6 {[%emt 0:00:08]} 21. Nxd6 {[%emt 0:00:04]} Qxd6 {[%emt 0:00:04]} 22. b4 {[%emt 0:03:24]} Bc8 {[%emt 0:05:02]} 23. b5 {[%emt 0:05:15]} Bg4 {[%emt 0:02:29]} 24. h3 {[%emt 0:03:22]} Bxf3 {[%emt 0:00:39]} 25. Bxf3 {[%emt 0:00:06]} Ne6 {[%emt 0:00:16]} 26. d5 {[%emt 0:06:39]} Nc5 {[%emt 0:00:25]} 27. Qxa7 {[%emt 0:00:16]} Nd3 {[%emt 0:04:02]} 28. Rc6 {[%emt 0:00:04]} Qb4 {[%emt 0:00:27]} 29. Rd1 {[%emt 0:06:05]} Ne5 {[%emt 0:04:28]} 30. Qxb6 {[%emt 0:08:05]} Nxf3+ {[%emt 0:01:56]} 31. gxf3 {[%emt 0:00:09]} Qh4 {[%emt 0:01:27]} 32. Qd4 {[%emt 0:00:41]} Qxh3 {[%emt 0:00:28]} 33. Qg4 {[%emt 0:00:04]} Qh6 {[%emt 0:00:06]} 34. d6 {[%emt 0:02:25]} f5 {[%emt 0:00:31]} 35. Qg3 {[%emt 0:01:01]} f4 {[%emt 0:08:52]} 36. Qg4 {[%emt 0:00:32]} f5 {[%emt 0:00:10]} 37. Qg2 {[%emt 0:00:06]} Bf6 {[%emt 0:02:47]} 38. d7 {[%emt 0:01:13]} Bd8 {[%emt 0:00:08]} 39. b6 {[%emt 0:00:24]} Bxb6 {[%emt 0:00:30]} 40. Rxb6 {[%emt 0:00:11]} Qh4 {[%emt 0:00:06]} 41. Rxg6+ {[%emt 0:02:44]} hxg6 {[%emt 0:00:04]} 42. Qxg6+ {[%emt 0:00:12]} Kh8 {[%emt 0:00:01]} 43. Kg2 {[%emt 0:00:16]} Rb8 {[%emt 0:05:33]} 44. Rh1 {[%emt 0:01:04]} Qxh1+ {[%emt 0:00:08]} 45. Kxh1 {[%emt 0:00:02]} Rb1+ {[%emt 0:00:05]} 46. Qg1 {[%emt 0:00:11]} Rxg1+ {[%emt 0:00:03]} 47. Kxg1 {[%emt 0:00:07]} 1-0